[Event "CZE-ch U16 Girls 2020"]
[Site "Kouty nad Desnou"]
[Date "2020.03.08"]
[Round "2.8"]
[White "Saskova, Renata"]
[Black "Vlachynska, Lilian"]
[Result "0-1"]
[ECO "C45"]
[WhiteElo "1191"]
[BlackElo "1224"]
[Annotator "NA"]
[PlyCount "100"]
[EventDate "2020.03.07"]
[EventCountry "CZE"]
[SourceTitle "playchess.com"]
[Source "ChessBase"]
[SourceQuality "1"]
[TimeControl "5400+30"]

1. e4 {[%emt 0:00:00]} e5 {[%emt 0:00:00]} 2. Nf3 {[%emt 0:00:00]} Nc6 {[%emt 0:00:00]} 3. d4 {[%emt 0:00:02]} exd4 {[%emt 0:00:00]} 4. Nxd4 {[%emt 0:00:07]} Bc5 {[%emt 0:00:02]} 5. Be3 {[%emt 0:03:11]} Qf6 {[%emt 0:00:53]} 6. c3 {[%emt 0:00:28]} Nge7 {[%emt 0:01:40]} 7. Be2 {[%emt 0:12:09]} d5 {[%emt 0:02:00]} 8. Bf3 {[%emt 0:10:15]} Ne5 {[%emt 0:30:47]} 9. exd5 {[%emt 0:09:44]} Nxf3+ {[%emt 0:01:00]} 10. Nxf3 {[%emt 0:01:28]} Bxe3 {[%emt 0:00:45]} 11. fxe3 {[%emt 0:00:13]} Qb6 {[%emt 0:02:10]} 12. Qd2 {[%emt 0:08:33]} O-O {[%emt 0:05:47]} 13. e4 {[%emt 0:11:13]} Re8 {[%emt 0:02:11]} 14. Qf2 {[%emt 0:04:05]} Nxd5 {[%emt 0:05:52]} 15. Qxb6 {[%emt 0:05:19]} Rxe4+ {[%emt 0:01:21]} 16. Kf2 {[%emt 0:02:35]} axb6 {[%emt 0:01:49]} 17. Nbd2 {[%emt 0:01:18]} Re8 {[%emt 0:00:44]} 18. Rhf1 {[%emt 0:04:03]} Bf5 {[%emt 0:03:59]} 19. Kg1 {[%emt 0:04:47]} h6 {[%emt 0:02:07]} 20. a3 {[%emt 0:03:51]} Rad8 {[%emt 0:03:27]} 21. Nd4 {[%emt 0:01:23]} Bg6 {[%emt 0:02:55]} 22. N2f3 {[%emt 0:02:19]} Ne3 {[%emt 0:09:08]} 23. Rfe1 {[%emt 0:02:27]} Nc4 {[%emt 0:01:07]} 24. Rxe8+ {[%emt 0:02:26]} Rxe8 {[%emt 0:00:06]} 25. b3 {[%emt 0:00:35]} Nd6 {[%emt 0:00:43]} 26. Rd1 {[%emt 0:02:47]} Re3 {[%emt 0:08:31]} 27. c4 {[%emt 0:01:37]} Nf5 {[%emt 0:05:09]} 28. Kf2 {[%emt 0:02:57]} Re8 {[%emt 0:01:07]} 29. g4 {[%emt 0:00:50]} Nxd4 {[%emt 0:00:29]} 30. Rxd4 {[%emt 0:00:16]} Ra8 {[%emt 0:01:49]} 31. a4 {[%emt 0:00:45]} Bc2 {[%emt 0:01:13]} 32. Nd2 {[%emt 0:00:07]} Kf8 {[%emt 0:00:15]} 33. Rd7 {[%emt 0:00:14]} Rc8 {[%emt 0:00:08]} 34. Ke3 {[%emt 0:00:47]} Ke8 {[%emt 0:00:12]} 35. Rd4 {[%emt 0:00:20]} Ke7 {[%emt 0:00:53]} 36. Kf4 {[%emt 0:00:38]} Rd8 {[%emt 0:00:21]} 37. Rxd8 {[%emt 0:01:03]} Kxd8 {[%emt 0:00:04]} 38. Ke5 {[%emt 0:00:14]} Ke7 {[%emt 0:00:10]} 39. h4 {[%emt 0:01:13]} f6+ {[%emt 0:00:37]} 40. Kd5 {[%emt 0:00:00]} c6+ {[%emt 0:00:00]} 41. Kd4 {[%emt 0:00:00]} Kd6 {[%emt 0:00:00]} 42. Ke3 {[%emt 0:00:00]} Ke5 {[%emt 0:00:00]} 43. Nf3+ {[%emt 0:00:00]} Kd6 {[%emt 0:00:00]} 44. Nd2 {[%emt 0:00:00]} Ke6 {[%emt 0:00:00]} 45. Kf4 {[%emt 0:00:00]} g5+ {[%emt 0:00:00]} 46. Kg3 {[%emt 0:00:00]} Ke5 {[%emt 0:00:00]} 47. h5 {[%emt 0:00:00]} Kd4 {[%emt 0:00:00]} 48. Kf2 {[%emt 0:00:00]} Bd1 {[%emt 0:00:00]} 49. Kg3 {[%emt 0:00:00]} Kd3 {[%emt 0:00:00]} 50. Nf3 {[%emt 0:00:00]} Bxb3 {[%emt 0:00:00]} 0-1

[Event "CZE-ch U16 Girls 2020"]
[Site "Kouty nad Desnou"]
[Date "2020.03.08"]
[Round "2.9"]
[White "Zilava, Anezka"]
[Black "Merinska, Julie"]
[Result "1-0"]
[ECO "C50"]
[WhiteElo "1224"]
[BlackElo "1182"]
[Annotator "NA"]
[PlyCount "53"]
[EventDate "2020.03.07"]
[EventCountry "CZE"]
[SourceTitle "playchess.com"]
[Source "ChessBase"]
[SourceQuality "1"]
[TimeControl "5400+30"]

1. e4 {[%emt 0:00:00]} e5 {[%emt 0:00:00]} 2. Nf3 {[%emt 0:00:00]} Nc6 {[%emt 0:00:00]} 3. Bc4 {[%emt 0:00:00]} Bc5 {[%emt 0:00:23]} 4. Nc3 {[%emt 0:00:00]} Nf6 {[%emt 0:00:24]} 5. d3 {[%emt 0:00:00]} d6 {[%emt 0:01:26]} 6. Bg5 {[%emt 0:00:10]} h6 {[%emt 0:00:52]} 7. Bh4 {[%emt 0:00:10]} g5 {[%emt 0:03:30]} 8. Bg3 {[%emt 0:00:21]} Be6 {[%emt 0:03:56]} 9. Bb5 {[%emt 0:03:55]} Bd7 {[%emt 0:01:19]} 10. Na4 {[%emt 0:01:18]} g4 {[%emt 0:06:48]} 11. Nd2 {[%emt 0:02:13]} b6 {[%emt 0:08:48]} 12. Bxc6 {[%emt 0:01:37]} Bxc6 {[%emt 0:00:58]} 13. Nxc5 {[%emt 0:00:25]} bxc5 {[%emt 0:03:21]} 14. Bh4 {[%emt 0:00:37]} h5 {[%emt 0:01:28]} 15. f3 {[%emt 0:00:16]} Bd7 {[%emt 0:02:41]} 16. Nc4 {[%emt 0:00:58]} Qe7 {[%emt 0:08:33]} 17. Ne3 {[%emt 0:02:00]} c6 {[%emt 0:05:06]} 18. Rf1 {[%emt 0:02:07]} Qe6 {[%emt 0:04:34]} 19. Nf5 {[%emt 0:01:25]} Rh7 {[%emt 0:02:20]} 20. Qd2 {[%emt 0:02:04]} Ng8 {[%emt 0:06:44]} 21. Qg5 {[%emt 0:00:55]} f6 {[%emt 0:02:15]} 22. Qg6+ {[%emt 0:01:02]} Qf7 {[%emt 0:02:33]} 23. Nxd6+ {[%emt 0:00:19]} Ke7 {[%emt 0:01:57]} 24. Nxf7 {[%emt 0:00:09]} Rxf7 {[%emt 0:32:04]} 25. fxg4 {[%emt 1:20:29]} hxg4 {[%emt 0:00:30]} 26. Qh5 {[%emt 0:00:30]} Raf8 {[%emt 0:00:30]} 27. Qxe5+ {[%emt 0:00:30]} 1-0

[Event "CZE-ch U16 Girls 2020"]
[Site "Kouty nad Desnou"]
[Date "2020.03.09"]
[Round "3.1"]
[White "Dvorakova, Olga"]
[Black "Gregurkova, Nikola"]
[Result "1-0"]
[ECO "A48"]
[WhiteElo "1793"]
[BlackElo "1642"]
[Annotator "NA RC"]
[PlyCount "92"]
[EventDate "2020.03.07"]
[EventCountry "CZE"]
[SourceTitle "playchess.com"]
[Source "ChessBase"]
[SourceQuality "1"]
[TimeControl "5400+30"]

1. d4 {[%emt 0:00:00]} Nf6 {[%emt 0:00:00]} 2. Nf3 {[%emt 0:00:00]} g6 {[%emt 0:01:00]} 3. e3 {[%emt 0:03:14]} Bg7 {[%emt 0:01:44]} 4. Be2 {[%emt 0:00:47]} O-O {[%emt 0:01:17]} 5. O-O {[%emt 0:00:21]} d6 {[%emt 0:02:44]} 6. Nbd2 {[%emt 0:05:32]} Nbd7 {[%emt 0:08:57]} 7. b3 {[%emt 0:01:34]} e5 {[%emt 0:04:50]} 8. dxe5 {[%emt 0:10:55]} Nxe5 {[%emt 0:04:19]} 9. Bb2 {[%emt 0:10:03]} Nfd7 {[%emt 0:14:38]} 10. Nxe5 {[%emt 0:17:21]} Nxe5 {[%emt 0:05:06]} 11. Rb1 {[%emt 0:13:49]} d5 {[%emt 0:16:58]} 12. f4 {[%emt 0:08:18]} Nc6 {[%emt 0:04:20]} 13. Bxg7 {[%emt 0:02:29]} Kxg7 {[%emt 0:00:03]} 14. Bd3 {[%emt 0:07:26]} f5 {[%emt 0:06:02]} 15. Nf3 {[%emt 0:02:24]} a6 {[%emt 0:04:55]} 16. Qd2 {[%emt 0:02:58]} Re8 {[%emt 0:04:44]} 17. Rfe1 {[%emt 0:00:27]} Be6 {[%emt 0:04:05]} 18. Nd4 {[%emt 0:04:08]} Qd6 {[%emt 0:06:18]} 19. Rbd1 {[%emt 0:02:44]} Kf7 {[%emt 0:03:23]} 20. Be2 {[%emt 0:02:06]} Rad8 {[%emt 0:02:17]} 21. Bf3 {[%emt 0:01:21]} Re7 {[%emt 0:01:41]} 22. c3 {[%emt 0:00:51]} Red7 {[%emt 0:00:44]} 23. g3 {[%emt 0:00:54]} h6 {[%emt 0:00:40]} 24. Qc2 {[%emt 0:00:22]} Qe7 {[%emt 0:00:35]} 25. Be2 {[%emt 0:00:55]} Ra8 {[%emt 0:00:29]} 26. Bf3 {[%emt 0:00:28]} Rad8 {[%emt 0:00:16]} 27. Rd2 {[%emt 0:01:09]} Kg7 {[%emt 0:00:40]} 28. Qb2 {[%emt 0:00:29]} Kf7 {[%emt 0:00:22]} 29. Red1 {[%emt 0:00:26]} Kf8 {[%emt 0:00:46]} 30. Kf2 {[%emt 0:00:30]} Kf7 {[%emt 0:00:24]} 31. Be2 {[%emt 0:00:43]} Ra8 {[%emt 0:00:23]} 32. Bf3 {[%emt 0:00:38]} Rad8 {[%emt 0:00:11]} 33. Be2 {[%emt 0:00:03]} Ra8 {[%emt 0:00:06]} 34. Nxe6 {[%emt 0:00:27]} Qxe6 {[%emt 0:00:26]} 35. c4 {[%emt 0:00:09]} Re8 {[%emt 0:00:44]} 36. Qc3 {[%emt 0:00:39]} d4 {[%emt 0:01:06]} 37. exd4 {[%emt 0:00:38]} Nxd4 {[%emt 0:00:36]} 38. Bf3 {[%emt 0:00:29]} c5 {[%emt 0:00:35]} 39. Bd5 {[%emt 0:00:29]} Rxd5 {[%emt 0:00:06]} 40. cxd5 {[%emt 0:00:00]} Qxd5 {[%emt 0:00:00]} 41. b4 {[%emt 0:00:00]} b6 {[%emt 0:00:00]} 42. bxc5 {[%emt 0:00:00]} bxc5 {[%emt 0:00:00]} 43. Qd3 {[%emt 0:00:00]} Qe6 {[%emt 0:00:00]} 44. Rc1 {[%emt 0:00:00]} Kg7 {[%emt 0:00:00]} 45. Rxc5 {[%emt 0:00:00]} Qe1+ {[%emt 0:00:00]} 46. Kg2 {[%emt 0:00:00]} Ne2 {[%emt 0:00:00]} 1-0

[Event "CZE-ch U16 Girls 2020"]
[Site "Kouty nad Desnou"]
[Date "2020.03.09"]
[Round "3.2"]
[White "Semova, Lada"]
[Black "Stastna, Martina"]
[Result "1/2-1/2"]
[ECO "D31"]
[WhiteElo "1477"]
[BlackElo "1700"]
[Annotator "NA"]
[PlyCount "71"]
[EventDate "2020.03.07"]
[EventCountry "CZE"]
[SourceTitle "playchess.com"]
[Source "ChessBase"]
[SourceQuality "1"]
[TimeControl "5400+30"]

1. d4 {[%emt 0:00:00]} d5 {[%emt 0:00:00]} 2. c4 {[%emt 0:00:00]} e6 {[%emt 0:00:25]} 3. Nc3 {[%emt 0:00:00]} c6 {[%emt 0:00:37]} 4. Qc2 {[%emt 0:00:39]} f5 {[%emt 0:01:34]} 5. cxd5 {[%emt 0:03:32]} exd5 {[%emt 0:02:57]} 6. Nf3 {[%emt 0:01:53]} Nf6 {[%emt 0:04:11]} 7. Bf4 {[%emt 0:02:39]} Be7 {[%emt 0:02:42]} 8. e3 {[%emt 0:00:45]} O-O {[%emt 0:03:24]} 9. Bd3 {[%emt 0:10:26]} Ne4 {[%emt 0:03:46]} 10. Ne5 {[%emt 0:01:21]} Bg5 {[%emt 0:09:08]} 11. Ne2 {[%emt 0:20:50]} Qa5+ {[%emt 0:06:59]} 12. Nc3 {[%emt 0:07:18]} Bxf4 {[%emt 0:04:51]} 13. exf4 {[%emt 0:00:07]} Qb4 {[%emt 0:02:36]} 14. f3 {[%emt 0:01:53]} Nf6 {[%emt 0:04:33]} 15. Qf2 {[%emt 0:00:12]} Qb6 {[%emt 0:02:33]} 16. O-O-O {[%emt 0:16:14]} Na6 {[%emt 0:05:39]} 17. g4 {[%emt 0:10:25]} Ne8 {[%emt 0:05:28]} 18. h4 {[%emt 0:06:57]} Be6 {[%emt 0:04:33]} 19. h5 {[%emt 0:01:54]} Rc8 {[%emt 0:04:29]} 20. h6 {[%emt 0:01:06]} g6 {[%emt 0:02:59]} 21. Rde1 {[%emt 0:03:06]} c5 {[%emt 0:02:27]} 22. gxf5 {[%emt 0:04:51]} Bxf5 {[%emt 0:03:40]} 23. Bxf5 {[%emt 0:00:20]} Rxf5 {[%emt 0:01:41]} 24. dxc5 {[%emt 0:02:49]} Nxc5 {[%emt 0:01:31]} 25. Kb1 {[%emt 0:01:13]} Na4 {[%emt 0:03:10]} 26. Qxb6 {[%emt 0:00:43]} Nxb6 {[%emt 0:00:03]} 27. Rh4 {[%emt 0:01:11]} Nf6 {[%emt 0:01:01]} 28. Rg1 {[%emt 0:00:59]} Nc4 {[%emt 0:05:25]} 29. Nxc4 {[%emt 0:00:34]} Rxc4 {[%emt 0:00:43]} 30. Rd1 {[%emt 0:00:29]} Rcxf4 {[%emt 0:01:51]} 31. Rxf4 {[%emt 0:00:12]} Rxf4 {[%emt 0:00:12]} 32. Nxd5 {[%emt 0:00:28]} Nxd5 {[%emt 0:00:19]} 33. Rxd5 {[%emt 0:00:03]} Rxf3 {[%emt 0:08:19]} 34. Rd8+ {[%emt 0:00:32]} Rf8 {[%emt 0:00:11]} 35. Rd7 {[%emt 0:00:10]} Rf7 {[%emt 0:00:38]} 36. Rd8+ {[%emt 0:00:05]} 1/2-1/2

[Event "CZE-ch U16 Girls 2020"]
[Site "Kouty nad Desnou"]
[Date "2020.03.09"]
[Round "3.3"]
[White "Vavrinkova, Anna"]
[Black "Vsetulova, Viktorie"]
[Result "1-0"]
[ECO "B01"]
[WhiteElo "1622"]
[BlackElo "1334"]
[Annotator "NA"]
[PlyCount "79"]
[EventDate "2020.03.07"]
[EventCountry "CZE"]
[SourceTitle "playchess.com"]
[Source "ChessBase"]
[SourceQuality "1"]
[TimeControl "5400+30"]

1. e4 {[%emt 0:00:00]} d5 {[%emt 0:00:00]} 2. exd5 {[%emt 0:00:00]} Nf6 {[%emt 0:00:00]} 3. d4 {[%emt 0:00:00]} Nxd5 {[%emt 0:00:00]} 4. c4 {[%emt 0:01:05]} Nb6 {[%emt 0:00:00]} 5. Nc3 {[%emt 0:01:37]} g6 {[%emt 0:00:58]} 6. Be3 {[%emt 0:01:21]} Bg7 {[%emt 0:01:16]} 7. Nf3 {[%emt 0:02:38]} O-O {[%emt 0:01:52]} 8. h3 {[%emt 0:02:42]} Nc6 {[%emt 0:02:30]} 9. Be2 {[%emt 0:01:40]} e5 {[%emt 0:04:41]} 10. d5 {[%emt 0:03:45]} Ne7 {[%emt 0:01:31]} 11. O-O {[%emt 0:00:48]} Nf5 {[%emt 0:02:54]} 12. Bd2 {[%emt 0:03:37]} Nd4 {[%emt 0:17:36]} 13. Nxd4 {[%emt 0:07:54]} exd4 {[%emt 0:00:10]} 14. Ne4 {[%emt 0:00:48]} Bf5 {[%emt 0:12:02]} 15. Nc5 {[%emt 0:05:10]} Rb8 {[%emt 0:05:48]} 16. Bf4 {[%emt 0:04:34]} Re8 {[%emt 0:11:15]} 17. Bd3 {[%emt 0:02:33]} Qe7 {[%emt 0:05:01]} 18. Bxf5 {[%emt 0:08:20]} Qxc5 {[%emt 0:01:22]} 19. Bd3 {[%emt 0:00:12]} Rbd8 {[%emt 0:04:26]} 20. Rc1 {[%emt 0:03:03]} c6 {[%emt 0:01:53]} 21. dxc6 {[%emt 0:12:04]} Qxc6 {[%emt 0:00:29]} 22. b4 {[%emt 0:00:46]} Nd7 {[%emt 0:02:59]} 23. Re1 {[%emt 0:02:12]} Ne5 {[%emt 0:04:02]} 24. Qc2 {[%emt 0:02:50]} Nxd3 {[%emt 0:01:25]} 25. Qxd3 {[%emt 0:01:00]} Qd7 {[%emt 0:02:53]} 26. Rcd1 {[%emt 0:01:27]} b6 {[%emt 0:02:52]} 27. a3 {[%emt 0:00:48]} a5 {[%emt 0:02:45]} 28. c5 {[%emt 0:05:14]} bxc5 {[%emt 0:01:19]} 29. bxc5 {[%emt 0:00:09]} Qc6 {[%emt 0:00:33]} 30. Bd6 {[%emt 0:00:54]} a4 {[%emt 0:01:56]} 31. Rxe8+ {[%emt 0:00:57]} Rxe8 {[%emt 0:00:10]} 32. Rb1 {[%emt 0:00:10]} Rc8 {[%emt 0:01:15]} 33. Rb6 {[%emt 0:02:48]} Qe8 {[%emt 0:01:41]} 34. Qb1 {[%emt 0:03:57]} h6 {[%emt 0:03:09]} 35. Rb7 {[%emt 0:01:09]} h5 {[%emt 0:01:25]} 36. Re7 {[%emt 0:00:31]} Qc6 {[%emt 0:01:55]} 37. Qa2 {[%emt 0:00:59]} Kh8 {[%emt 0:01:21]} 38. Qxf7 {[%emt 0:00:27]} Rg8 {[%emt 0:00:17]} 39. Be5 {[%emt 0:00:31]} Qxc5 {[%emt 0:01:12]} 40. Bxg7+ {[%emt 0:00:00]} 1-0

[Event "CZE-ch U16 Girls 2020"]
[Site "Kouty nad Desnou"]
[Date "2020.03.09"]
[Round "3.4"]
[White "Leksova, Sona"]
[Black "Zilava, Anezka"]
[Result "1-0"]
[ECO "C68"]
[WhiteElo "1645"]
[BlackElo "1224"]
[Annotator "NA RC"]
[PlyCount "71"]
[EventDate "2020.03.07"]
[EventCountry "CZE"]
[SourceTitle "playchess.com"]
[Source "ChessBase"]
[SourceQuality "1"]
[TimeControl "5400+30"]

1. e4 {[%emt 0:00:00]} e5 {[%emt 0:00:00]} 2. Nf3 {[%emt 0:00:00]} Nc6 {[%emt 0:00:00]} 3. Bb5 {[%emt 0:00:00]} Bc5 {[%emt 0:00:00]} 4. O-O {[%emt 0:00:59]} a6 {[%emt 0:00:09]} 5. Bxc6 {[%emt 0:00:19]} dxc6 {[%emt 0:00:32]} 6. d3 {[%emt 0:00:45]} Bg4 {[%emt 0:00:38]} 7. Be3 {[%emt 0:00:42]} Bd6 {[%emt 0:00:37]} 8. Nbd2 {[%emt 0:00:20]} Ne7 {[%emt 0:00:32]} 9. Qe1 {[%emt 0:00:58]} O-O {[%emt 0:02:27]} 10. h3 {[%emt 0:00:46]} Be6 {[%emt 0:01:12]} 11. Rc1 {[%emt 0:03:44]} Qd7 {[%emt 0:01:37]} 12. Ng5 {[%emt 0:04:36]} h6 {[%emt 0:01:30]} 13. Nxe6 {[%emt 0:01:20]} Qxe6 {[%emt 0:00:09]} 14. c4 {[%emt 0:00:19]} c5 {[%emt 0:00:40]} 15. b4 {[%emt 0:01:12]} b6 {[%emt 0:00:20]} 16. bxc5 {[%emt 0:00:38]} bxc5 {[%emt 0:00:29]} 17. Nb3 {[%emt 0:03:08]} Rab8 {[%emt 0:01:13]} 18. Qd2 {[%emt 0:08:00]} f5 {[%emt 0:01:29]} 19. f3 {[%emt 0:03:15]} f4 {[%emt 0:01:46]} 20. Bf2 {[%emt 0:00:13]} Nc6 {[%emt 0:01:03]} 21. Bxc5 {[%emt 0:01:53]} Qe7 {[%emt 0:04:06]} 22. Bxd6 {[%emt 0:03:26]} cxd6 {[%emt 0:00:58]} 23. d4 {[%emt 0:02:14]} Qa7 {[%emt 0:02:05]} 24. Rfd1 {[%emt 0:05:42]} Rfc8 {[%emt 0:07:19]} 25. Kh1 {[%emt 0:00:56]} Qc7 {[%emt 0:01:45]} 26. c5 {[%emt 0:04:14]} dxc5 {[%emt 0:05:35]} 27. Rxc5 {[%emt 0:00:28]} Qe7 {[%emt 0:05:10]} 28. dxe5 {[%emt 0:02:24]} Nxe5 {[%emt 0:03:59]} 29. Rxc8+ {[%emt 0:01:10]} Rxc8 {[%emt 0:00:07]} 30. Qxf4 {[%emt 0:00:18]} Rc2 {[%emt 0:01:29]} 31. Rd2 {[%emt 0:01:54]} Rc6 {[%emt 0:01:12]} 32. Rd5 {[%emt 0:01:52]} Ng6 {[%emt 0:02:11]} 33. Qb8+ {[%emt 0:04:38]} Nf8 {[%emt 0:00:46]} 34. Qd8 {[%emt 0:01:45]} Qb4 {[%emt 0:02:55]} 35. Rf5 {[%emt 0:02:24]} Rb6 {[%emt 0:04:00]} 36. Rxf8+ {[%emt 0:01:48]} 1-0

[Event "CZE-ch U16 Girls 2020"]
[Site "Kouty nad Desnou"]
[Date "2020.03.09"]
[Round "3.5"]
[White "Vlachynska, Lilian"]
[Black "Strnadova, Monika"]
[Result "0-1"]
[ECO "B35"]
[WhiteElo "1224"]
[BlackElo "1514"]
[Annotator "NA"]
[PlyCount "62"]
[EventDate "2020.03.07"]
[EventCountry "CZE"]
[SourceTitle "playchess.com"]
[Source "ChessBase"]
[SourceQuality "1"]
[TimeControl "5400+30"]

1. e4 {[%emt 0:00:00]} c5 {[%emt 0:00:00]} 2. Nf3 {[%emt 0:00:00]} Nc6 {[%emt 0:00:00]} 3. d4 {[%emt 0:00:00]} cxd4 {[%emt 0:00:01]} 4. Nxd4 {[%emt 0:00:00]} g6 {[%emt 0:00:20]} 5. Nc3 {[%emt 0:00:03]} Bg7 {[%emt 0:00:29]} 6. Be3 {[%emt 0:00:10]} Nf6 {[%emt 0:00:45]} 7. Bc4 {[%emt 0:00:15]} O-O {[%emt 0:02:02]} 8. Bb3 {[%emt 0:00:37]} e6 {[%emt 0:01:31]} 9. f3 {[%emt 0:20:05]} d5 {[%emt 0:02:21]} 10. exd5 {[%emt 0:01:46]} exd5 {[%emt 0:00:38]} 11. Qd2 {[%emt 0:01:15]} Re8 {[%emt 0:01:27]} 12. O-O-O {[%emt 0:01:16]} Ne5 {[%emt 0:08:17]} 13. Bf2 {[%emt 0:06:45]} Nc4 {[%emt 0:06:07]} 14. Qd3 {[%emt 0:03:15]} Bh6+ {[%emt 0:02:28]} 15. Kb1 {[%emt 0:00:40]} Ne5 {[%emt 0:01:13]} 16. Qf1 {[%emt 0:06:05]} a6 {[%emt 0:03:19]} 17. Bg3 {[%emt 0:04:51]} Nc6 {[%emt 0:09:54]} 18. Nde2 {[%emt 0:07:09]} Bf5 {[%emt 0:15:28]} 19. Nxd5 {[%emt 0:05:43]} Bxc2+ {[%emt 0:02:56]} 20. Kxc2 {[%emt 0:03:31]} Nxd5 {[%emt 0:00:47]} 21. Bxd5 {[%emt 0:03:02]} Nb4+ {[%emt 0:00:41]} 22. Kb1 {[%emt 0:00:25]} Nxd5 {[%emt 0:00:15]} 23. Nc3 {[%emt 0:01:34]} Nxc3+ {[%emt 0:00:13]} 24. bxc3 {[%emt 0:00:17]} Qb6+ {[%emt 0:00:16]} 25. Ka1 {[%emt 0:00:29]} Rac8 {[%emt 0:00:26]} 26. Rb1 {[%emt 0:01:26]} Qe3 {[%emt 0:02:06]} 27. Be1 {[%emt 0:01:57]} b5 {[%emt 0:03:20]} 28. a3 {[%emt 0:03:54]} Bg7 {[%emt 0:01:17]} 29. Rb3 {[%emt 0:02:13]} Qc1+ {[%emt 0:02:38]} 30. Ka2 {[%emt 0:00:24]} Rcd8 {[%emt 0:06:50]} 31. Qf2 {[%emt 0:04:18]} Rd1 {[%emt 0:01:05]} 0-1

[Event "CZE-ch U16 Girls 2020"]
[Site "Kouty nad Desnou"]
[Date "2020.03.09"]
[Round "3.6"]
[White "Dudova, Pavlina"]
[Black "Londinova, Jasmina Marie"]
[Result "1-0"]
[ECO "C62"]
[WhiteElo "1499"]
[BlackElo "1155"]
[Annotator "NA RC"]
[PlyCount "41"]
[EventDate "2020.03.07"]
[EventCountry "CZE"]
[SourceTitle "playchess.com"]
[Source "ChessBase"]
[SourceQuality "1"]
[TimeControl "5400+30"]

1. e4 {[%emt 0:00:00]} e5 {[%emt 0:00:00]} 2. Nf3 {[%emt 0:00:00]} Nc6 {[%emt 0:00:00]} 3. Bb5 {[%emt 0:00:00]} d6 {[%emt 0:00:12]} 4. O-O {[%emt 0:00:09]} Bd7 {[%emt 0:00:26]} 5. d4 {[%emt 0:01:28]} Nxd4 {[%emt 0:01:52]} 6. Nxd4 {[%emt 0:01:37]} exd4 {[%emt 0:00:14]} 7. Bxd7+ {[%emt 0:00:12]} Qxd7 {[%emt 0:00:09]} 8. Qxd4 {[%emt 0:00:16]} Nf6 {[%emt 0:01:04]} 9. Nc3 {[%emt 0:00:25]} Be7 {[%emt 0:02:22]} 10. b3 {[%emt 0:01:21]} Qc6 {[%emt 0:03:15]} 11. Bb2 {[%emt 0:04:45]} Rg8 {[%emt 0:03:14]} 12. Rfe1 {[%emt 0:07:36]} Qd7 {[%emt 0:06:25]} 13. e5 {[%emt 0:07:22]} dxe5 {[%emt 0:01:24]} 14. Qxe5 {[%emt 0:01:20]} Kf8 {[%emt 0:01:53]} 15. Rad1 {[%emt 0:03:09]} Qe8 {[%emt 0:02:45]} 16. Qxc7 {[%emt 0:01:11]} b6 {[%emt 0:04:27]} 17. Re2 {[%emt 0:02:02]} Rd8 {[%emt 0:04:31]} 18. Qxa7 {[%emt 0:08:05]} Rxd1+ {[%emt 0:04:11]} 19. Nxd1 {[%emt 0:00:09]} Qd8 {[%emt 0:01:01]} 20. Nc3 {[%emt 0:00:22]} g6 {[%emt 0:01:55]} 21. Rxe7 {[%emt 0:01:05]} 1-0

[Event "CZE-ch U16 Girls 2020"]
[Site "Kouty nad Desnou"]
[Date "2020.03.09"]
[Round "3.7"]
[White "Kuncicka, Klara"]
[Black "Habinova, Alice"]
[Result "0-1"]
[ECO "B73"]
[WhiteElo "1223"]
[BlackElo "1474"]
[Annotator "NA"]
[PlyCount "62"]
[EventDate "2020.03.07"]
[EventCountry "CZE"]
[SourceTitle "playchess.com"]
[Source "ChessBase"]
[SourceQuality "1"]
[TimeControl "5400+30"]

1. e4 {[%emt 0:00:00]} c5 {[%emt 0:00:00]} 2. Nf3 {[%emt 0:00:00]} Nc6 {[%emt 0:00:00]} 3. Nc3 {[%emt 0:00:00]} d6 {[%emt 0:01:08]} 4. d4 {[%emt 0:01:07]} cxd4 {[%emt 0:00:21]} 5. Nxd4 {[%emt 0:00:04]} Nf6 {[%emt 0:00:38]} 6. Be2 {[%emt 0:00:46]} g6 {[%emt 0:03:01]} 7. O-O {[%emt 0:00:45]} Bg7 {[%emt 0:00:32]} 8. Be3 {[%emt 0:00:05]} O-O {[%emt 0:00:43]} 9. Kh1 {[%emt 0:06:05]} e6 {[%emt 0:05:54]} 10. Qd2 {[%emt 0:04:20]} Re8 {[%emt 0:01:21]} 11. f4 {[%emt 0:04:00]} d5 {[%emt 0:03:18]} 12. e5 {[%emt 0:01:34]} Nd7 {[%emt 0:01:14]} 13. Ncb5 {[%emt 0:04:01]} f6 {[%emt 0:03:42]} 14. Nd6 {[%emt 0:02:16]} Re7 {[%emt 0:04:10]} 15. Bg4 {[%emt 0:08:13]} Nxd4 {[%emt 0:03:17]} 16. Bxd4 {[%emt 0:00:45]} fxe5 {[%emt 0:01:47]} 17. fxe5 {[%emt 0:08:00]} Nxe5 {[%emt 0:01:41]} 18. Bxe5 {[%emt 0:06:09]} Bxe5 {[%emt 0:02:27]} 19. Nxc8 {[%emt 0:03:00]} Qxc8 {[%emt 0:03:53]} 20. Qg5 {[%emt 0:03:24]} Bd6 {[%emt 0:05:53]} 21. Rae1 {[%emt 0:01:00]} Qd7 {[%emt 0:02:45]} 22. Qf6 {[%emt 0:05:21]} Rae8 {[%emt 0:02:59]} 23. h4 {[%emt 0:08:44]} Bc7 {[%emt 0:01:31]} 24. Rxe6 {[%emt 0:04:19]} Rxe6 {[%emt 0:10:04]} 25. Qf3 {[%emt 0:09:10]} Qe7 {[%emt 0:06:36]} 26. Qxd5 {[%emt 0:06:03]} Qxh4+ {[%emt 0:00:47]} 27. Bh3 {[%emt 0:00:13]} Kg7 {[%emt 0:02:19]} 28. Qf3 {[%emt 0:05:15]} Rf6 {[%emt 0:02:16]} 29. Qd3 {[%emt 0:02:31]} Rxf1+ {[%emt 0:00:55]} 30. Qxf1 {[%emt 0:00:07]} Re1 {[%emt 0:00:17]} 31. Qxe1 {[%emt 0:01:30]} Qxe1# {[%emt 0:00:10]} 0-1